[Event "1st Festival ChessInLyon-GM 2024"]
[Site "Lyon"]
[Date "2024.04.25"]
[Round "6.1"]
[White "Droin, Augustin"]
[Black "Gatineau, Yovann"]
[Result "1-0"]
[ECO "C13"]
[WhiteElo "2478"]
[BlackElo "2408"]
[Annotator "TA"]
[PlyCount "75"]
[EventDate "2024.04.23"]
[EventType "tourn"]
[EventCountry "FRA"]
[SourceTitle "playchess.com"]
[Source "ChessBase"]
[SourceQuality "1"]
[TimeControl "40/5400+30:1800+30"]

{[%evp 11,75,18,21,16,15,21,46,28,21,0,7,0,0,4,0,0,0,-8,0,-30,-26,-27,0,0,0,0,0,0,7,0,60,52,53,49,49,47,233,231,232,248,308,326,314,305,289,303,291,291,312,302,282,294,300,250,312,269,494,493,493,499,618,627,669,668,725,706]} 1. e4 {[%emt 0:00:02]} e6 {[%emt 0:09:20]} 2. d4 {[%emt 0:00:08]} d5 {[%emt 0:00:07]} 3. Nc3 {[%emt 0:00:35]} Nf6 {[%emt 0:00:07]} 4. Bg5 {[%emt 0:00:07]} dxe4 {[%emt 0:00:20]} 5. Nxe4 {[%emt 0:00:04]} Be7 {[%emt 0:00:13]} 6. Bxf6 {[%emt 0:00:05]} gxf6 {[%emt 0:00:10]} 7. Nc3 {[%emt 0:00:17]} c6 {[%emt 0:00:15]} 8. Nf3 {[%emt 0:00:17]} Qd6 {[%emt 0:03:46]} 9. Qd2 {[%emt 0:02:45] White is slightly better.} Nd7 {[%emt 0:02:07]} 10. Ne4 {[%emt 0:01:24]} Qc7 {[%emt 0:02:09]} 11. Qh6 {[%emt 0:01:53]} b6 {[%emt 0:10:41]} 12. Qg7 {[%emt 0:10:40]} Rf8 {[%emt 0:01:00]} 13. Qg3 {[%emt 0:00:05]} Qb8 {[%emt 0:07:06]} 14. a4 {[%emt 0:06:38]} Bb7 {[%emt 0:02:56]} 15. Bd3 {[%emt 0:03:53]} a6 {[%emt 0:03:18]} 16. c4 {[%emt 0:05:23]} c5 {[%emt 0:06:06]} 17. d5 {[%emt 0:00:08]} exd5 {[%emt 0:02:13]} 18. cxd5 {[%emt 0:00:14]} Bxd5 {[%emt 0:01:16]} 19. O-O-O {[%emt 0:04:45]} Qxg3 {[%emt 0:12:03]} 20. hxg3 {[%emt 0:00:39]} Bc6 {[%emt 0:06:07]} (20... Bb3 $11) 21. Nc3 $14 {[%emt 0:00:53]} (21. Rxh7 $6 b5 22. Re1 Kd8 $16) 21... Ne5 {[%emt 0:05:29]} 22. Nxe5 {[%emt 0:02:43]} (22. Rxh7 Nxd3+ 23. Rxd3 Rd8 $11) 22... fxe5 {[%emt 0:00:07]} 23. Rh5 {[%emt 0:00:06]} Bf6 $2 {[%emt 0:08:10] [#] Loses the game.} (23... Bxg2 $14 24. Rxe5 Rd8) 24. Be4 $18 {[%emt 0:00:09]} (24. Bxh7 $6 Rd8 $16) 24... Bxe4 {[%emt 0:01:40]} 25. Nxe4 {[%emt 0:00:04]} Ke7 {[%emt 0:00:35]} 26. Rd6 {[%emt 0:01:12]} (26. Rxh7 Rab8 27. Kc2 Rh8 28. Rxh8 (28. Nxf6 Kxf6 29. Rd6+ Ke7 $16) 28... Bxh8 $16) 26... Bh8 {[%emt 0:00:40]} 27. Rxb6 {[%emt 0:00:09]} Rfb8 {[%emt 0:01:46]} 28. Rxb8 {[%emt 0:02:13]} Rxb8 {[%emt 0:00:02]} 29. Rxh7 {[%emt 0:00:06][%mdl 4096] Endgame. KRB-KRN} (29. Nxc5 e4 $16) 29... a5 {[%emt 0:02:03]} 30. g4 {[%emt 0:01:10]} (30. Nxc5 e4 31. b3 (31. Nxe4 Bxb2+ 32. Kd2 Rb4 $16) 31... Bd4 32. Nxe4 Rxb3 $16) 30... Rg8 {[%emt 0:02:20]} 31. f3 {[%emt 0:00:05]} (31. Nxc5 Bf6 32. g5 (32. f3 $2 Rc8 $19) 32... Rxg5 $16) 31... Bf6 {[%emt 0:01:10]} 32. Rh5 {[%emt 0:03:02]} (32. Nxc5 $2 {perishes.} Rc8 33. Rh5 (33. b4 $2 axb4 34. Kb2 Rxc5 $19) 33... Rxc5+ 34. Kd2 Rd5+ 35. Kc2 Rd4 $19) 32... c4 {[%emt 0:02:05]} 33. Kc2 {[%emt 0:00:12] [#] aiming for Rh6.} Rb8 $2 {[%emt 0:01:02]} (33... Bg7 {was necessary.} 34. Rh7 c3 35. bxc3 (35. Nxc3 Kf6 $18) 35... f6) 34. Rh6 {[%emt 0:00:09] White is clearly winning.} Bg7 {[%emt 0:00:25]} 35. Ra6 {[%emt 0:00:04]} Rh8 {[%emt 0:00:39]} 36. Rxa5 {[%emt 0:00:33]} Rh2 {[%emt 0:00:05]} 37. Rb5 {[%emt 0:00:06]} Rxg2+ {[%emt 0:00:05]} 38. Kc3 {[%emt 0:00:02] Weighted Error Value: White=0.06 (flawless) /Black=0.33.  Loses game:     	---       	Black=1      Mistake:       	---       	Black=2      Inaccurate:     	White=1     	Black=1      OK:         	White=13    	Black=14     Best:        	White=2     	---} 1-0

[Event "1st Festival ChessInLyon-GM 2024"]
[Site "Lyon"]
[Date "2024.04.25"]
[Round "6.2"]
[White "Boyer, Mahel"]
[Black "Pourramezanali, Amirreza"]
[Result "1/2-1/2"]
[ECO "D79"]
[WhiteElo "2432"]
[BlackElo "2502"]
[Annotator "TA"]
[PlyCount "31"]
[EventDate "2024.04.23"]
[EventType "tourn"]
[EventCountry "FRA"]
[SourceTitle "playchess.com"]
[Source "ChessBase"]
[SourceQuality "1"]
[TimeControl "40/5400+30:1800+30"]

{[%evp 22,31,22,14,6,0,0,-7,-4,0,5,-13]} 1. Nf3 {[%emt 0:10:33]} d5 {[%emt 0:00:04]} 2. g3 {[%emt 0:00:05]} g6 {[%emt 0:00:45]} 3. Bg2 {[%emt 0:01:53]} Bg7 {[%emt 0:00:05]} 4. d4 {[%emt 0:00:24]} Nf6 {[%emt 0:00:05]} 5. O-O {[%emt 0:01:03]} O-O {[%emt 0:00:06]} 6. c4 {[%emt 0:02:42]} c6 {[%emt 0:00:04]} 7. cxd5 {[%emt 0:00:36]} cxd5 {[%emt 0:00:02]} 8. Nc3 {[%emt 0:02:59]} Ne4 {[%emt 0:00:28]} 9. Ne5 {[%emt 0:10:45]} Nxc3 {[%emt 0:01:31]} 10. bxc3 {[%emt 0:00:26]} Nc6 {[%emt 0:00:03]} 11. Nxc6 {[%emt 0:01:49]} bxc6 {[%emt 0:00:02]} 12. Qa4 {[%emt 0:00:39] The position is equal.} Qb6 {[%emt 0:02:24]} 13. e4 {[%emt 0:03:39]} Ba6 {[%emt 0:12:00]} 14. Re1 {[%emt 0:00:14]} e6 {[%emt 0:00:24]} 15. Ba3 {[%emt 0:00:48] [#] exd5 would now be deadly.} Bb5 {[%emt 0:02:29]} 16. Qb3 {[%emt 0:06:24] A rather calm draw.   Weighted Error Value: White=0.03 (flawless) /Black=0.01 (flawless) .  OK:         	White=1     	Black=2} 1/2-1/2

[Event "1st Festival ChessInLyon-GM 2024"]
[Site "Lyon"]
[Date "2024.04.25"]
[Round "6.3"]
[White "Tahay, Alexis"]
[Black "Vlachos, Anatole"]
[Result "1/2-1/2"]
[ECO "B15"]
[WhiteElo "2382"]
[BlackElo "2482"]
[Annotator "TA"]
[PlyCount "123"]
[EventDate "2024.04.23"]
[EventType "tourn"]
[EventCountry "FRA"]
[SourceTitle "playchess.com"]
[Source "ChessBase"]
[SourceQuality "1"]
[TimeControl "40/5400+30:1800+30"]

{[%evp 31,123,-3,14,0,0,0,0,4,12,16,47,0,7,0,21,-115,-39,-37,-35,-33,-32,-50,-31,-40,-40,-72,0,-4,0,-20,0,0,0,0,12,8,8,2,8,0,0,0,0,0,0,0,0,0,0,0,0,0,58,58,87,0,0,0,0,0,0,0,0,0,0,0,0,0,0,0,0,0,0,0,0,0,0,0,0,0,0,0,0,0,0,0,0,0,0,0,0,0,0,0]} 1. e4 {[%emt 0:00:21]} c6 {[%emt 0:00:04]} 2. d4 {[%emt 0:01:10]} d5 {[%emt 0:00:05]} 3. Nd2 {[%emt 0:00:02]} dxe4 {[%emt 0:00:05]} 4. Nxe4 {[%emt 0:00:03]} Nf6 {[%emt 0:00:13]} 5. Qd3 {[%emt 0:02:19]} Nxe4 {[%emt 0:01:33]} 6. Qxe4 {[%emt 0:00:04] B15: Caro-Kann: 3 Nc3: 3...g6 and 3...dxe4 4 Nxe4 Nf6 5 Nxf6+ exf6.} Qd5 {[%emt 0:04:39]} 7. Qe3 {[%emt 0:01:32]} Bf5 {[%emt 0:02:00]} 8. c3 $146 {[%emt 0:02:13]} ({Predecessor:} 8. c4 Qe6 9. Nf3 Na6 10. a3 g6 11. Be2 Bg7 12. O-O O-O 13. Qxe6 Bxe6 14. Be3 {1-0 Khamdamova,A (2260)-Balabayeva,K (2186) Asian Continental (Women) op 20th 2023 (4)}) 8... g6 {[%emt 0:08:23]} 9. Nf3 {[%emt 0:06:59]} Nd7 {[%emt 0:00:14]} 10. Be2 {[%emt 0:01:08]} h5 {[%emt 0:03:07]} 11. c4 {[%emt 0:07:17]} Qa5+ {[%emt 0:03:16]} 12. Bd2 {[%emt 0:03:17]} Qb6 {[%emt 0:00:02]} 13. O-O {[%emt 0:05:29]} Qxb2 {[%emt 0:04:59]} 14. Bc3 {[%emt 0:06:32]} Qc2 {[%emt 0:09:41]} 15. d5 {[%emt 0:08:49]} Bh6 {[%emt 0:00:12]} 16. Qd4 {[%emt 0:00:01]} f6 {[%emt 0:01:34]} 17. Bd1 {[%emt 0:03:31]} Qd3 {[%emt 0:14:41]} 18. dxc6 {[%emt 0:01:31]} bxc6 {[%emt 0:00:05]} 19. Ba4 {[%emt 0:01:19]} Rc8 {[%emt 0:00:08]} 20. Rfe1 {[%emt 0:09:28]} Kf7 {[%emt 0:08:44]} (20... Qxd4 {simplifies} 21. Nxd4 Kf7 22. Bxc6 Ne5) 21. Rad1 {[%emt 0:03:38]} Qxd4 {[%emt 0:00:35]} 22. Nxd4 {[%emt 0:00:02]} Nb6 {[%emt 0:02:32]} 23. Bxc6 {[%emt 0:06:24] [#]} (23. Nxf5 $11 gxf5 24. Bc2) 23... e5 {[%emt 0:03:15]} (23... Bg4 $1 $17 {[%cal Rg4d1]} 24. c5 Bxd1 25. cxb6 axb6 26. Bd5+ (26. Rxd1 $2 {perishes.} Rhd8 $19) 26... Kf8) 24. Nxf5 $15 {[%emt 0:00:08]} Rxc6 {[%emt 0:00:14]} 25. Nxh6+ {[%emt 0:00:07]} Rxh6 {[%emt 0:00:01]} 26. Ba5 {[%emt 0:02:34]} Rxc4 {[%emt 0:03:29]} 27. Bxb6 {[%emt 0:00:02]} axb6 {[%emt 0:00:07]} 28. Rd6 {[%emt 0:00:54]} Rb4 {[%emt 0:01:41]} ({Black should try} 28... b5 $17) 29. a3 $11 {[%emt 0:00:28]} Ra4 {[%emt 0:09:37]} 30. Re3 {[%emt 0:01:52]} Rh8 {[%emt 0:01:43]} 31. Rf3 {[%emt 0:01:22]} f5 {[%emt 0:00:44]} 32. Rg3 {[%emt 0:05:04]} Rg4 {[%emt 0:02:45]} 33. Rc3 {[%emt 0:00:19]} Kg7 {[%emt 0:00:51]} 34. h3 {[%emt 0:00:36]} ({Much less strong is} 34. Rxb6 $6 Kh6 $16) 34... Rd4 {[%emt 0:03:26]} 35. Rxb6 {[%emt 0:01:08]} Kh6 {[%emt 0:00:18]} 36. Rcc6 {[%emt 0:03:12]} Rg8 {[%emt 0:13:27]} 37. Re6 {[%emt 0:00:35]} e4 {[%emt 0:00:00]} 38. h4 {[%emt 0:01:47]} e3 {[%emt 0:00:00]} 39. Rxe3 {[%emt 0:00:37]} Rxh4 {[%emt 0:00:00]} 40. Rb4 {[%emt 0:00:44]} Rg4 {[%emt 0:00:00]} 41. f3 {[%emt 0:33:30]} Rg5 {[%emt 0:23:19]} (41... Rxb4 $1 $11 42. axb4 Kg5) 42. Re2 $14 {[%emt 0:03:34]} Rf8 {[%emt 0:04:00] [#]} 43. a4 {[%emt 0:01:36]} (43. Rf4 $1 $16) 43... f4 $1 $11 {[%emt 0:00:22]} 44. Rb5 {[%emt 0:00:29]} Ra8 {[%emt 0:00:50]} 45. Rxg5 {[%emt 0:00:04]} Kxg5 {[%emt 0:00:06]} 46. Ra2 {[%emt 0:00:03]} Ra5 {[%emt 0:00:22]} 47. Kf2 {[%emt 0:00:35]} Kh4 {[%emt 0:00:35]} 48. Ra1 {[%emt 0:00:09]} Kg5 {[%emt 0:00:01]} 49. Ra2 {[%emt 0:02:23]} Kf5 {[%emt 0:04:13]} 50. Ke2 {[%emt 0:00:21]} g5 {[%emt 0:00:35]} 51. Kd3 {[%emt 0:01:10]} g4 {[%emt 0:00:05]} 52. fxg4+ {[%emt 0:00:10]} hxg4 {[%emt 0:00:00]} 53. Kc4 {[%emt 0:00:00]} f3 {[%emt 0:00:00]} 54. gxf3 {[%emt 0:00:00]} gxf3 {[%emt 0:00:00]} 55. Kb4 {[%emt 0:00:00]} Re5 {[%emt 0:00:00]} 56. a5 {[%emt 0:00:00]} Re2 {[%emt 0:00:00]} 57. Ra1 {[%emt 0:00:00]} f2 {[%emt 0:00:00]} 58. Rf1 {[%emt 0:00:00]} Ke4 {[%emt 0:00:00]} 59. Kc5 {[%emt 0:00:00]} Rc2+ {[%emt 0:00:00]} 60. Kb6 {[%emt 0:00:00]} Rb2+ {[%emt 0:00:00]} 61. Kc6 {[%emt 0:00:00]} Ra2 {[%emt 0:00:00]} 62. Kb6 {[%emt 0:00:00]} 1/2-1/2

[Event "1st Festival ChessInLyon-GM 2024"]
[Site "Lyon"]
[Date "2024.04.25"]
[Round "6.4"]
[White "Crut, Aurelien"]
[Black "Fedorchuk, Sergey A."]
[Result "0-1"]
[ECO "B51"]
[WhiteElo "2312"]
[BlackElo "2557"]
[Annotator "TA"]
[PlyCount "142"]
[EventDate "2024.04.23"]
[EventType "tourn"]
[EventCountry "FRA"]
[SourceTitle "playchess.com"]
[Source "ChessBase"]
[SourceQuality "1"]
[TimeControl "40/5400+30:1800+30"]

{[%evp 54,142,-10,-12,0,-24,-22,-29,-7,-26,-17,-21,-11,-12,-15,-9,-6,-8,58,49,100,-39,-34,-41,-12,-14,-24,-10,0,0,0,0,0,0,0,0,0,-11,0,0,0,-151,-120,-142,-127,-151,-154,-151,-156,-157,-156,-139,-154,-150,-117,-204,-196,-191,-182,-209,-198,-324,-304,-312,-310,-501,-466,-428,-421,-622,-625,-614,-541,-827,-766,-2587,-2270,-2452,-2156,-3006,-2691,-2100,-2087,-1225,-1287,-29984,-29985,-29985,-29986,-29987,-29988]} 1. e4 {[%emt 0:00:02]} c5 {[%emt 0:03:20]} 2. Nf3 {[%emt 0:00:11]} d6 {[%emt 0:00:38]} 3. Bb5+ {[%emt 0:00:18]} Nd7 {[%emt 0:00:09]} 4. a4 {[%emt 0:00:20]} Ngf6 {[%emt 0:05:27]} 5. Nc3 {[%emt 0:01:05]} g6 {[%emt 0:03:34]} 6. a5 {[%emt 0:01:44] B51: Sicilian: Moscow Variation (3 Bb5+) without 3...Bd7.} Bg7 {[%emt 0:00:29]} 7. O-O {[%emt 0:02:28]} O-O {[%emt 0:00:30]} 8. a6 {[%emt 0:06:52]} Qc7 $5 {[%emt 0:16:22][%mdl 4] An interesting side line.} 9. d3 $146 {[%emt 0:15:58]} ({Predecessor:} 9. Qe2 bxa6 10. Bxa6 Bxa6 11. Rxa6 Nb8 12. Ra4 Nc6 13. d3 Qb7 14. e5 dxe5 15. Nxe5 {0-1 Henriquez Villagra,C (2524)-Valenzuela Fuentealba,L (2442) Santiago de Chile m 2018 (3)}) 9... Nb8 {[%emt 0:01:33]} 10. axb7 {[%emt 0:09:12]} Bxb7 {[%emt 0:00:06]} 11. Bg5 {[%emt 0:04:30]} a6 {[%emt 0:00:36]} 12. Bc4 {[%emt 0:01:50]} e6 {[%emt 0:00:40]} 13. Qd2 {[%emt 0:13:07]} Re8 {[%emt 0:00:34]} 14. Bb3 {[%emt 0:06:01]} Nc6 {[%emt 0:00:44]} 15. Rfe1 {[%emt 0:02:23]} Nd7 {[%emt 0:01:17]} 16. Ba4 {[%emt 0:03:16]} Reb8 {[%emt 0:03:35]} 17. Bh6 {[%emt 0:04:14]} Bh8 {[%emt 0:00:31]} 18. h3 {[%emt 0:04:30]} Nb6 {[%emt 0:01:42]} 19. Bxc6 {[%emt 0:01:10]} Bxc6 {[%emt 0:00:22]} 20. Rab1 {[%emt 0:01:33]} a5 {[%emt 0:02:02]} 21. b3 {[%emt 0:02:22]} Nd7 {[%emt 0:01:37]} 22. Bf4 {[%emt 0:01:34]} Rb4 {[%emt 0:01:16]} 23. Rbd1 {[%emt 0:02:48]} a4 {[%emt 0:02:50]} 24. Nxa4 {[%emt 0:01:35]} Bxa4 {[%emt 0:00:18]} 25. bxa4 {[%emt 0:00:03]} Rbxa4 {[%emt 0:00:07]} 26. c4 {[%emt 0:04:53]} Ra3 {[%emt 0:03:10]} 27. Rc1 {[%emt 0:02:45]} Rb8 {[%emt 0:02:30]} 28. Red1 {[%emt 0:02:53]} Rbb3 {[%emt 0:03:18]} 29. Qe2 {[%emt 0:00:40]} Qb8 {[%emt 0:01:19]} 30. Rc2 {[%emt 0:01:23]} Bg7 {[%emt 0:01:47]} 31. Kh2 {[%emt 0:00:45]} h6 {[%emt 0:00:50]} 32. g3 {[%emt 0:01:09]} Kh7 {[%emt 0:05:21]} 33. Kg2 {[%emt 0:00:23]} Nb6 {[%emt 0:00:13]} 34. Bc1 {[%emt 0:01:08]} Ra1 {[%emt 0:01:59]} 35. Ra2 {[%emt 0:01:13]} Na4 {[%emt 0:03:26]} ({Black should try} 35... Rxa2 $11 36. Qxa2 Rb4) 36. Rxa1 $1 $14 {[%emt 0:00:52]} Bxa1 {[%emt 0:01:53]} (36... Nc3 $14 37. Qc2 (37. Ng5+ $2 hxg5 38. Qf3 Nxd1 $19) 37... Nxd1) 37. Bd2 {[%emt 0:00:41]} ({Better is} 37. Bxh6 $1 $16 Bh8 (37... Nc3 $2 38. Ng5+ Kxh6 39. Qg4 $18) 38. Be3) 37... Bg7 $15 {[%emt 0:00:18]} 38. Rc1 {[%emt 0:00:33]} Qb7 {[%emt 0:03:36]} 39. Rc2 {[%emt 0:00:33]} Nb2 {[%emt 0:02:55]} 40. Ne1 {[%emt 0:00:20]} f5 {[%emt 0:00:34]} 41. Bc1 {[%emt 0:10:23]} Na4 {[%emt 0:02:29]} 42. Bd2 {[%emt 0:02:56]} Rb1 {[%emt 0:04:38]} 43. Nf3 {[%emt 0:05:24]} Rb3 {[%emt 0:02:14]} 44. h4 {[%emt 0:04:17]} fxe4 {[%emt 0:02:22]} 45. Qxe4 {[%emt 0:02:37]} Qxe4 {[%emt 0:00:12]} 46. dxe4 {[%emt 0:00:04]} Rb2 {[%emt 0:00:03]} 47. Ne1 $2 {[%emt 0:01:11] [#]} (47. Rc1 $11) 47... Nb6 $1 $17 {[%emt 0:00:48]} 48. Rxb2 {[%emt 0:05:47]} Bxb2 {[%emt 0:00:05]} 49. Nd3 {[%emt 0:00:11]} Nxc4 {[%emt 0:00:17]} 50. Bf4 {[%emt 0:00:30]} Bd4 {[%emt 0:00:47]} 51. Kf1 {[%emt 0:01:02]} h5 {[%emt 0:01:34]} 52. Ke2 {[%emt 0:00:09]} Kg7 {[%emt 0:00:08]} 53. f3 {[%emt 0:00:18]} Kf7 {[%emt 0:03:53]} 54. Bc1 {[%emt 0:00:20]} (54. g4 $17) 54... Ne5 $19 {[%emt 0:02:07]} 55. Nf4 {[%emt 0:00:39]} Ba1 {[%emt 0:00:45]} 56. Nh3 {[%emt 0:01:08]} c4 {[%emt 0:01:06]} 57. Ba3 {[%emt 0:00:46]} (57. Nf4 $142) 57... d5 $19 {[%emt 0:01:58]} 58. Ng5+ {[%emt 0:00:33]} Kf6 {[%emt 0:00:05]} 59. Nh7+ $2 {[%emt 0:00:39]} (59. f4 {is a better defense.} Nc6 60. Nh7+ Kg7 61. Ng5 Nd4+ 62. Kd2) 59... Kg7 $19 {[%emt 0:00:31]} 60. Ng5 {[%emt 0:00:09] [#]} d4 $1 {[%emt 0:00:05]} 61. f4 {[%emt 0:01:34]} (61. Bb4 $142 Nc6 62. Bd6) 61... d3+ $19 {[%emt 0:01:34]} 62. Kd1 {[%emt 0:00:13]} Ng4 {[%emt 0:01:16]} 63. Nxe6+ {[%emt 0:00:13]} Kf6 {[%emt 0:00:29]} 64. Nc5 {[%emt 0:00:26]} Bc3 {[%emt 0:00:28]} 65. Nd7+ {[%emt 0:00:50]} Ke6 {[%emt 0:01:45]} 66. Nf8+ {[%emt 0:00:10]} Kf7 {[%emt 0:00:20]} 67. Bc5 {[%emt 0:00:07]} Bb2 {[%emt 0:01:00]} 68. Kd2 {[%emt 0:00:59]} Nf6 {[%emt 0:00:13]} 69. Ke3 {[%emt 0:00:28]} Bc1+ {[%emt 0:01:06]} 70. Kf3 {[%emt 0:00:10]} c3 {[%emt 0:00:37]} 71. Bb4 {[%emt 0:01:21]} c2 {[%emt 0:00:17]} 0-1

[Event "1st Festival ChessInLyon-GM 2024"]
[Site "Lyon"]
[Date "2024.04.25"]
[Round "6.5"]
[White "Poetsch, Hagen"]
[Black "Shyaamnikhil P"]
[Result "1/2-1/2"]
[ECO "A46"]
[WhiteElo "2460"]
[BlackElo "2390"]
[Annotator "TA"]
[PlyCount "46"]
[EventDate "2024.04.23"]
[EventType "tourn"]
[EventCountry "FRA"]
[SourceTitle "playchess.com"]
[Source "ChessBase"]
[SourceQuality "1"]
[TimeControl "40/5400+30:1800+30"]

{[%evp 13,46,0,9,0,2,0,10,-19,-5,-13,-10,-12,-14,-12,-16,-17,-10,-8,-18,-10,-16,-18,-8,-14,-18,-10,-8,-6,-6,-5,0,0,0,-1,0]} 1. d4 {[%emt 0:00:25]} Nf6 {[%emt 0:00:38]} 2. Nf3 {[%emt 0:00:16]} e6 {[%emt 0:01:04]} 3. g3 {[%emt 0:00:07]} b5 {[%emt 0:00:43]} 4. Bg2 {[%emt 0:05:38]} Bb7 {[%emt 0:00:12]} 5. O-O {[%emt 0:00:06]} c5 {[%emt 0:04:16]} 6. c3 {[%emt 0:01:22]} cxd4 {[%emt 0:08:25]} 7. cxd4 {[%emt 0:00:08]} Be7 {[%emt 0:00:19] The position is equal.} 8. a4 {[%emt 0:04:09]} bxa4 {[%emt 0:05:10]} 9. Qxa4 {[%emt 0:03:18]} O-O {[%emt 0:00:13]} 10. Nbd2 {[%emt 0:07:16]} d5 {[%emt 0:05:52]} 11. Ne5 {[%emt 0:01:56]} Qb6 {[%emt 0:03:31]} 12. Nb3 {[%emt 0:09:16][%cal Ob3c5]} Ba6 {[%emt 0:01:31]} 13. Bf3 {[%emt 0:07:36]} Bb5 {[%emt 0:01:41]} 14. Qa5 {[%emt 0:00:52] [#] Qxb6 is the strong threat.} Nc6 {[%emt 0:03:30]} 15. Qxb6 {[%emt 0:01:13]} axb6 {[%emt 0:00:10]} 16. Nxc6 {[%emt 0:02:11]} Bxc6 {[%emt 0:00:09]} 17. Bf4 {[%emt 0:00:30]} Rfc8 {[%emt 0:08:11]} 18. Rfc1 {[%emt 0:02:06] [#] Rxa8 would now be deadly.} Rxa1 {[%emt 0:02:28]} 19. Rxa1 {[%emt 0:00:41]} Ne8 {[%emt 0:03:41]} 20. Ra6 {[%emt 0:02:03]} g5 {[%emt 0:03:24]} 21. Bd2 {[%emt 0:00:55]} Rb8 {[%emt 0:05:42]} 22. Nc1 {[%emt 0:09:42]} Nc7 {[%emt 0:03:17]} 23. Ra7 {[%emt 0:00:35]} Rb7 {[%emt 0:07:23] An uneventful encounter.   Weighted Error Value: White=0.04 (flawless) /Black=0.04 (flawless) .  Inaccurate:     	White=1     	---        OK:         	White=8     	Black=7} 1/2-1/2

[Event "1st Festival ChessInLyon-GM 2024"]
[Site "Lyon"]
[Date "2024.04.26"]
[Round "7.1"]
[White "Vlachos, Anatole"]
[Black "Poetsch, Hagen"]
[Result "0-1"]
[ECO "C11"]
[WhiteElo "2482"]
[BlackElo "2460"]
[Annotator "TA"]
[PlyCount "76"]
[EventDate "2024.04.23"]
[EventType "tourn"]
[EventCountry "FRA"]
[SourceTitle "playchess.com"]
[Source "ChessBase"]
[SourceQuality "1"]
[TimeControl "40/5400+30:1800+30"]

{[%evp 17,76,0,0,0,0,8,6,0,0,0,18,30,36,22,16,24,23,13,20,0,0,0,0,0,16,10,20,9,33,34,34,21,50,54,45,51,50,50,131,9,12,34,127,44,52,50,101,24,17,31,31,18,27,0,0,-8,-12,-330,-257,-29980,-29981]} 1. e4 {[%emt 0:00:02]} e6 {[%emt 0:00:08]} 2. d4 {[%emt 0:00:05]} d5 {[%emt 0:00:04]} 3. Nc3 {[%emt 0:00:03]} Nf6 {[%emt 0:00:06]} 4. e5 {[%emt 0:00:03]} Nfd7 {[%emt 0:00:06]} 5. f4 {[%emt 0:00:04]} c5 {[%emt 0:00:04]} 6. Nf3 {[%emt 0:00:03]} Nc6 {[%emt 0:00:04]} 7. Be3 {[%emt 0:00:03]} cxd4 {[%emt 0:00:14]} 8. Nxd4 {[%emt 0:00:04]} Qb6 {[%emt 0:00:06]} 9. a3 {[%emt 0:00:03]} Bc5 {[%emt 0:00:07]} 10. Ncb5 {[%emt 0:00:03]} (10. Na4 $5 Qa5+ $8 11. c3 Bxd4 12. Bxd4 $11) 10... Nxd4 {[%emt 0:01:30]} 11. Bxd4 {[%emt 0:00:14]} O-O {[%emt 0:00:07]} 12. b4 {[%emt 0:00:30] The position is equal.} Bxd4 {[%emt 0:00:06]} 13. Qxd4 {[%emt 0:09:48]} f6 {[%emt 0:02:13]} 14. exf6 {[%emt 0:00:28]} Rxf6 {[%emt 0:11:56]} 15. g3 {[%emt 1:26:27]} a5 {[%emt 0:10:31]} 16. Qxb6 {[%emt 0:00:00]} Nxb6 {[%emt 0:00:06]} 17. c3 {[%emt 0:00:00]} Bd7 {[%emt 0:04:40]} 18. Nd4 {[%emt 0:00:00]} axb4 {[%emt 0:18:33]} 19. cxb4 {[%emt 0:00:00]} g5 {[%emt 0:00:41]} 20. fxg5 {[%emt 0:00:00]} Rf7 {[%emt 0:02:31]} 21. Be2 {[%emt 0:00:00]} e5 {[%emt 0:00:19]} 22. Nf3 {[%emt 0:00:00]} Nc4 {[%emt 0:18:09]} 23. O-O {[%emt 0:00:00]} Bh3 {[%emt 0:02:20]} 24. Rfc1 {[%emt 0:00:00]} Bg4 {[%emt 0:06:34]} (24... Rxa3 $2 {is the wrong capture.} 25. Rxa3 (25. Bxc4 Rxa1 26. Rxa1 dxc4 $14) 25... Nxa3 26. g6 $18 (26. Nxe5 Re7 $16)) 25. Bxc4 {[%emt 0:00:00]} Bxf3 {[%emt 0:00:05]} 26. Bb3 {[%emt 0:00:00]} Rd8 {[%emt 0:02:32]} 27. Rc5 {[%emt 0:00:00]} Rf5 {[%emt 0:04:30]} (27... Rfd7 $14) 28. h4 {[%emt 0:00:00]} (28. Rf1 $16 {[%cal Ob3d5] And now Bxd5+! would win.} e4 29. Rc7) 28... e4 $11 {[%emt 0:00:43]} 29. Re1 {[%emt 0:00:00]} Kf7 {[%emt 0:02:26] [#]} ({Better is} 29... h6 $14) 30. g4 $1 {[%emt 0:00:00][%mdl 512]} Re5 $14 {[%emt 0:01:27][%cal Od8d7]} 31. Kf2 $1 {[%emt 0:00:00] Hoping for Kg3.} Ke7 {[%emt 0:02:15]} ({Black should play} 31... Bxg4 $14 32. Ke3 Rf5) 32. Rg1 {[%emt 0:00:00]} (32. Rc7+ $16 Rd7 33. Rxd7+ Kxd7 34. Bd1 Bxd1 35. Rxd1) 32... Kd6 $1 $11 {[%emt 0:07:28]} 33. Ke3 {[%emt 0:00:00] aiming for a4.} b6 {[%emt 0:00:47]} 34. Rc3 {[%emt 0:00:00] Threatens to win with Rgc1.} Rde8 $1 {[%emt 0:02:00]} 35. Re1 {[%emt 0:00:00]} Bxg4 {[%emt 0:00:18]} 36. Kd4 {[%emt 0:00:00]} Bd7 $1 {[%emt 0:00:58] Against Ba4} 37. Rf1 $2 {[%emt 0:00:00][%mdl 8192] [#]} (37. Rg3 $11) 37... e3 $1 $19 {[%emt 0:01:29]} 38. Bc2 {[%emt 0:00:00] [#] Wards off Re4+} (38. Rf6+ $19 R8e6 39. Rc1 (39. Rxe6+ Bxe6 40. Rxe3 Rxe3 $19) 39... Re4+ 40. Kd3) 38... Re4+ $1 {[%emt 0:01:17][%mdl 512] Weighted Error Value: White=0.49/Black=0.14 (very precise) .  Loses game:     	White=1     	---        Mistake:       	White=4     	Black=3      Inaccurate:     	White=1     	Black=1      OK:         	White=9     	Black=6      Best:        	White=2     	Black=4      Strong:       	White=1     	Black=4      Brilliant:      	---       	Black=1} 0-1